[Event "Chess Stars Match"]
[Site "Teatro Capri, Paterna, Spain"]
[Date "2019.12.15"]
[Round "2.1"]
[White "Arizmendi Martinez, Julen Luis"]
[Black "Howell, David W L"]
[Result "1-0"]
[TimeControl "7m+3s"]
[WhiteTitle "GM"]
[BlackTitle "GM"]
[WhiteFideId "2205092"]
[BlackFideId "410608"]
[WhiteElo "2511"]
[BlackElo "2676"]

1. d4 {[%clk 00:03:04]} {[%emt 00:00:01]} d5 {[%clk 00:03:04]} {[%emt
00:00:02]} 2. c4 {[%clk 00:03:06]} {[%emt 00:00:02]} e6 {[%clk 00:03:06]} 3.
Nc3 {[%clk 00:03:07]} {[%emt 00:00:02]} c5 {[%clk 00:03:06]} {[%emt 00:00:02]}
4. cxd5 {[%clk 00:02:55]} {[%emt 00:00:16]} cxd4 {[%clk 00:03:08]} {[%emt
00:00:01]} 5. Qa4+ {[%clk 00:02:38]} {[%emt 00:00:19]} Bd7 {[%clk 00:03:04]}
{[%emt 00:00:07]} 6. Qxd4 {[%clk 00:02:40]} {[%emt 00:00:02]} exd5 {[%clk
00:03:05]} {[%emt 00:00:01]} 7. Qxd5 {[%clk 00:02:31]} {[%emt 00:00:12]} Nc6
{[%clk 00:03:06]} {[%emt 00:00:02]} 8. Nf3 {[%clk 00:02:21]} {[%emt 00:00:13]}
Nf6 {[%clk 00:02:39]} {[%emt 00:00:30]} 9. Qd1 {[%clk 00:02:06]} {[%emt
00:00:18]} Qc7 {[%clk 00:02:27]} {[%emt 00:00:15]} 10. e3 {[%clk 00:01:58]}
{[%emt 00:00:10]} O-O-O {[%clk 00:02:10]} {[%emt 00:00:21]} 11. Be2 {[%clk
00:01:45]} {[%emt 00:00:16]} Bh3 {[%clk 00:01:58]} {[%emt 00:00:14]} 12. Qa4
{[%clk 00:01:47]} {[%emt 00:00:02]} Bxg2 {[%clk 00:01:51]} {[%emt 00:00:10]} 13.
Rg1 {[%clk 00:01:49]} {[%emt 00:00:01]} Bh3 {[%clk 00:01:02]} {[%emt 00:00:52]}
14. Bd2 {[%clk 00:01:48]} {[%emt 00:00:05]} a6 {[%clk 00:00:46]} {[%emt
00:00:19]} 15. Rc1 {[%clk 00:01:35]} {[%emt 00:00:15]} Kb8 {[%clk 00:00:48]} 16.
Ne4 {[%clk 00:01:29]} {[%emt 00:00:09]} Nxe4 {[%clk 00:00:29]} {[%emt
00:00:22]} 17. Qxe4 {[%clk 00:01:30]} {[%emt 00:00:01]} Qd7 {[%clk 00:00:22]}
{[%emt 00:00:09]} 18. Bxa6 {[%clk 00:01:08]} {[%emt 00:00:25]} Bf5 {[%clk
00:00:24]} 19. Qa4 {[%clk 00:01:10]} {[%emt 00:00:02]} Ne5 {[%clk 00:00:09]}
{[%emt 00:00:18]} 20. Qf4 {[%clk 00:01:09]} {[%emt 00:00:03]} bxa6 {[%clk
00:00:05]} {[%emt 00:00:08]} 21. Qxe5+ {[%clk 00:01:08]} {[%emt 00:00:04]} Bd6
{[%clk 00:00:07]} 22. Qa5 {[%clk 00:01:06]} {[%emt 00:00:05]} Qb5 {[%clk
00:00:09]} 23. Qxb5+ {[%clk 00:01:04]} {[%emt 00:00:05]} axb5 {[%clk 00:00:12]}
24. Nd4 {[%clk 00:01:06]} {[%emt 00:00:01]} Bd7 {[%clk 00:00:12]} {[%emt
00:00:03]} 25. Rxg7 {[%clk 00:01:06]} {[%emt 00:00:04]} Bxh2 {[%clk 00:00:12]}
{[%emt 00:00:03]} 26. Rxf7 {[%clk 00:01:04]} {[%emt 00:00:05]} Bd6 {[%clk
00:00:10]} {[%emt 00:00:05]} 27. Nc6+ {[%clk 00:00:57]} {[%emt 00:00:10]} Bxc6
{[%clk 00:00:11]} {[%emt 00:00:02]} 28. Rxc6 {[%clk 00:01:00]} h5 {[%clk
00:00:06]} {[%emt 00:00:09]} 29. Ba5 {[%clk 00:00:49]} {[%emt 00:00:14]} Rdf8
{[%clk 00:00:08]} {[%emt 00:00:01]} 30. Rd7 {[%clk 00:00:42]} {[%emt 00:00:10]}
Be5 {[%clk 00:00:08]} {[%emt 00:00:02]} 31. Rd5 {[%clk 00:00:38]} {[%emt
00:00:07]} Re8 {[%clk 00:00:07]} {[%emt 00:00:05]} 32. Rxe5 {[%clk 00:00:33]}
{[%emt 00:00:08]} Rxe5 {[%clk 00:00:08]} {[%emt 00:00:02]} 33. Bc7+ {[%clk
00:00:35]} Kb7 {[%clk 00:00:10]} 34. Bxe5 {[%clk 00:00:37]} 1-0

[Event "Chess Stars Match"]
[Site "Teatro Capri, Paterna, Spain"]
[Date "2019.12.15"]
[Round "2.2"]
[White "Semenova, Elena"]
[Black "Hamitevici, Vladimir"]
[Result "0-1"]
[TimeControl "7m+3s"]
[WhiteTitle "WIM"]
[BlackTitle "GM"]
[WhiteFideId "24125148"]
[BlackFideId "13902393"]
[WhiteElo "2290"]
[BlackElo "2453"]

1. e4 {[%clk 00:04:05]} {[%emt 00:00:01]} c6 {[%clk 00:03:00]} {[%emt
00:00:06]} 2. d4 {[%clk 00:04:07]} {[%emt 00:00:01]} d5 {[%clk 00:03:02]} 3.
Nc3 {[%clk 00:04:05]} {[%emt 00:00:05]} a6 {[%clk 00:02:59]} {[%emt 00:00:06]}
4. Nf3 {[%clk 00:04:01]} {[%emt 00:00:07]} Bg4 {[%clk 00:02:58]} {[%emt
00:00:05]} 5. h3 {[%clk 00:04:01]} {[%emt 00:00:03]} Bh5 {[%clk 00:03:00]}
{[%emt 00:00:01]} 6. Be2 {[%clk 00:03:43]} {[%emt 00:00:21]} e6 {[%clk
00:03:02]} {[%emt 00:00:01]} 7. Bf4 {[%clk 00:03:39]} {[%emt 00:00:07]} Nf6
{[%clk 00:03:02]} {[%emt 00:00:03]} 8. exd5 {[%clk 00:03:15]} {[%emt 00:00:28]}
cxd5 {[%clk 00:03:03]} {[%emt 00:00:01]} 9. Ne5 {[%clk 00:02:55]} {[%emt
00:00:23]} Bg6 {[%clk 00:02:45]} {[%emt 00:00:21]} 10. h4 {[%clk 00:02:46]}
{[%emt 00:00:12]} Qb6 {[%clk 00:01:30]} {[%emt 00:01:18]} 11. h5 {[%clk
00:02:02]} {[%emt 00:00:46]} Bf5 {[%clk 00:01:00]} {[%emt 00:00:34]} 12. g4
{[%clk 00:01:29]} {[%emt 00:00:37]} Be4 {[%clk 00:01:02]} 13. f3 {[%clk
00:01:10]} {[%emt 00:00:23]} Qxb2 {[%clk 00:01:03]} {[%emt 00:00:01]} 14. Na4
{[%clk 00:01:00]} {[%emt 00:00:13]} Qxc2 {[%clk 00:01:01]} {[%emt 00:00:05]} 15.
Qxc2 {[%clk 00:00:54]} {[%emt 00:00:09]} Bxc2 {[%clk 00:01:03]} {[%emt
00:00:01]} 16. Nb6 {[%clk 00:00:56]} {[%emt 00:00:01]} Bb4+ {[%clk 00:00:17]}
{[%emt 00:00:49]} 17. Kf2 {[%clk 00:00:58]} {[%emt 00:00:01]} Bc3 {[%clk
00:00:18]} {[%emt 00:00:02]} 18. Rac1 {[%clk 00:00:33]} {[%emt 00:00:27]} Bxd4+
{[%clk 00:00:20]} {[%emt 00:00:02]} 19. Be3 {[%clk 00:00:34]} {[%emt 00:00:02]}
Bxb6 {[%clk 00:00:22]} {[%emt 00:00:01]} 20. Bxb6 {[%clk 00:00:31]} {[%emt
00:00:06]} Nbd7 {[%clk 00:00:24]} 21. Nxd7 {[%clk 00:00:21]} {[%emt 00:00:13]}
Nxd7 {[%clk 00:00:26]} {[%emt 00:00:01]} 22. Rxc2 {[%clk 00:00:16]} {[%emt
00:00:09]} Nxb6 {[%clk 00:00:28]} {[%emt 00:00:01]} 23. Rb1 {[%clk 00:00:18]}
Nc8 {[%clk 00:00:22]} {[%emt 00:00:10]} 24. Rxb7 {[%clk 00:00:16]} {[%emt
00:00:05]} O-O {[%clk 00:00:17]} {[%emt 00:00:07]} 25. Rc6 {[%clk 00:00:10]}
{[%emt 00:00:09]} a5 {[%clk 00:00:15]} {[%emt 00:00:06]} 26. a4 {[%clk
00:00:12]} {[%emt 00:00:01]} Rd8 {[%clk 00:00:14]} {[%emt 00:00:03]} 27. Rcc7
{[%clk 00:00:09]} {[%emt 00:00:07]} Nd6 {[%clk 00:00:15]} {[%emt 00:00:02]} 28.
Rb6 {[%clk 00:00:09]} {[%emt 00:00:03]} h6 {[%clk 00:00:10]} {[%emt 00:00:08]}
29. Ke3 {[%clk 00:00:11]} {[%emt 00:00:01]} e5 {[%clk 00:00:06]} {[%emt
00:00:07]} 30. Bf1 {[%clk 00:00:09]} {[%emt 00:00:05]} Rab8 {[%clk 00:00:05]}
{[%emt 00:00:04]} 31. Ra6 {[%clk 00:00:08]} {[%emt 00:00:04]} Rb3+ {[%clk
00:00:06]} 32. Kf2 {[%clk 00:00:09]} {[%emt 00:00:01]} e4 {[%clk 00:00:08]}
{[%emt 00:00:02]} 33. Rxa5 {[%clk 00:00:08]} {[%emt 00:00:05]} Rxf3+ {[%clk
00:00:09]} {[%emt 00:00:01]} 34. Ke2 {[%clk 00:00:06]} {[%emt 00:00:04]} Ne8
{[%clk 00:00:10]} {[%emt 00:00:02]} 35. Re7 {[%clk 00:00:06]} {[%emt 00:00:04]}
Nf6 {[%clk 00:00:11]} {[%emt 00:00:02]} 36. Bg2 {[%clk 00:00:06]} {[%emt
00:00:03]} Rg3 {[%clk 00:00:11]} {[%emt 00:00:03]} 37. Kf2 {[%clk 00:00:08]}
{[%emt 00:00:01]} Ra3 {[%clk 00:00:13]} {[%emt 00:00:01]} 38. Raa7 {[%clk
00:00:06]} {[%emt 00:00:06]} Nxg4+ {[%clk 00:00:14]} {[%emt 00:00:02]} 39. Ke1
{[%clk 00:00:05]} {[%emt 00:00:04]} Ra1+ {[%clk 00:00:13]} {[%emt 00:00:03]} 40.
Ke2 {[%clk 00:00:06]} {[%emt 00:00:03]} Ra2+ {[%clk 00:00:14]} {[%emt
00:00:01]} 41. Kf1 {[%clk 00:00:04]} {[%emt 00:00:05]} Ne3+ {[%clk 00:00:16]}
{[%emt 00:00:01]} 0-1

[Event "Chess Stars Match"]
[Site "Teatro Capri, Paterna, Spain"]
[Date "2019.12.15"]
[Round "2.3"]
[White "Llobell Cortell, Enrique"]
[Black "Injac, Teodora"]
[Result "1-0"]
[TimeControl "7m+3s"]
[WhiteTitle "IM"]
[BlackTitle "WIM"]
[WhiteFideId "2216116"]
[BlackFideId "932400"]
[WhiteElo "2401"]
[BlackElo "2284"]

1. e4 {[%clk 00:04:04]} {[%emt 00:00:02]} c5 {[%clk 00:04:05]} {[%emt
00:00:01]} 2. Nc3 {[%clk 00:04:06]} {[%emt 00:00:01]} d6 {[%clk 00:04:07]} 3.
f4 {[%clk 00:04:07]} {[%emt 00:00:01]} g6 {[%clk 00:04:06]} {[%emt 00:00:04]} 4.
Nf3 {[%clk 00:04:09]} {[%emt 00:00:01]} Bg7 {[%clk 00:04:08]} {[%emt 00:00:01]}
5. Bb5+ {[%clk 00:04:11]} Bd7 {[%clk 00:04:06]} {[%emt 00:00:06]} 6. Bc4 {[%clk
00:04:12]} {[%emt 00:00:01]} Nc6 {[%clk 00:04:05]} {[%emt 00:00:04]} 7. O-O
{[%clk 00:04:09]} {[%emt 00:00:05]} Na5 {[%clk 00:04:00]} {[%emt 00:00:10]} 8.
Be2 {[%clk 00:04:11]} Nf6 {[%clk 00:03:59]} {[%emt 00:00:04]} 9. d3 {[%clk
00:04:11]} {[%emt 00:00:03]} O-O {[%clk 00:03:55]} {[%emt 00:00:06]} 10. Qe1
{[%clk 00:04:13]} {[%emt 00:00:01]} Nc6 {[%clk 00:03:52]} {[%emt 00:00:06]} 11.
Qh4 {[%clk 00:04:11]} {[%emt 00:00:05]} Nd4 {[%clk 00:03:48]} {[%emt 00:00:07]}
12. Bd1 {[%clk 00:04:13]} e6 {[%clk 00:03:45]} {[%emt 00:00:07]} 13. f5 {[%clk
00:04:05]} {[%emt 00:00:11]} exf5 {[%clk 00:03:08]} {[%emt 00:00:40]} 14. Bg5
{[%clk 00:04:03]} {[%emt 00:00:05]} Ne6 {[%clk 00:02:57]} {[%emt 00:00:15]} 15.
Bd2 {[%clk 00:02:44]} {[%emt 00:01:22]} fxe4 {[%clk 00:02:45]} {[%emt
00:00:15]} 16. dxe4 {[%clk 00:02:45]} Qb6 {[%clk 00:01:34]} {[%emt 00:01:13]}
17. Ng5 {[%clk 00:01:37]} {[%emt 00:01:13]} Nxg5 {[%clk 00:01:27]} {[%emt
00:00:11]} 18. Bxg5 {[%clk 00:01:38]} {[%emt 00:00:01]} Qxb2 {[%clk 00:00:40]}
{[%emt 00:00:50]} 19. Bxf6 {[%clk 00:00:46]} {[%emt 00:00:56]} Bxf6 {[%clk
00:00:42]} {[%emt 00:00:01]} 20. Qxf6 {[%clk 00:00:38]} {[%emt 00:00:10]} Qxa1
{[%clk 00:00:22]} {[%emt 00:00:24]} 21. Bg4 {[%clk 00:00:12]} {[%emt 00:00:28]}
Qxf1+ {[%clk 00:00:22]} {[%emt 00:00:03]} 22. Kxf1 {[%clk 00:00:12]} {[%emt
00:00:03]} Bxg4 {[%clk 00:00:25]} {[%emt 00:00:01]} 23. Nd5 {[%clk 00:00:12]}
{[%emt 00:00:03]} h5 {[%clk 00:00:21]} {[%emt 00:00:06]} 24. Qxd6 {[%clk
00:00:10]} {[%emt 00:00:05]} Be6 {[%clk 00:00:12]} {[%emt 00:00:12]} 25. Nf6+
{[%clk 00:00:09]} {[%emt 00:00:04]} Kg7 {[%clk 00:00:13]} {[%emt 00:00:02]} 26.
Qe5 {[%clk 00:00:11]} {[%emt 00:00:01]} Kh6 {[%clk 00:00:10]} {[%emt 00:00:06]}
27. a3 {[%clk 00:00:08]} {[%emt 00:00:06]} b6 {[%clk 00:00:12]} {[%emt
00:00:01]} 28. h3 {[%clk 00:00:07]} {[%emt 00:00:04]} Rad8 {[%clk 00:00:13]}
{[%emt 00:00:02]} 29. g4 {[%clk 00:00:09]} hxg4 {[%clk 00:00:14]} {[%emt
00:00:02]} 30. hxg4 {[%clk 00:00:11]} {[%emt 00:00:01]} g5 {[%clk 00:00:12]}
{[%emt 00:00:05]} 31. Nh5 {[%clk 00:00:13]} {[%emt 00:00:01]} Bxg4 {[%clk
00:00:12]} {[%emt 00:00:03]} 32. Qg7+ {[%clk 00:00:12]} {[%emt 00:00:04]} 1-0

[Event "Chess Stars Match"]
[Site "Teatro Capri, Paterna, Spain"]
[Date "2019.12.15"]
[Round "2.4"]
[White "Macias Pino, Diego"]
[Black "Randazzo, Adrian"]
[Result "1/2-1/2"]
[TimeControl "7m+3s"]
[BlackTitle "FM"]
[WhiteFideId "24529133"]
[BlackFideId "114251"]
[WhiteElo "2161"]
[BlackElo "2230"]

1. e4 {[%clk 00:06:05]} {[%emt 00:11:25]} c5 {[%clk 00:04:04]} {[%emt
00:00:03]} 2. Nc3 {[%clk 00:06:07]} {[%emt 00:00:01]} a6 {[%clk 00:04:06]}
{[%emt 00:00:01]} 3. g3 {[%clk 00:06:08]} {[%emt 00:00:02]} b5 {[%clk
00:04:08]} 4. Bg2 {[%clk 00:06:10]} {[%emt 00:00:01]} Bb7 {[%clk 00:04:10]}
{[%emt 00:00:02]} 5. d3 {[%clk 00:06:10]} {[%emt 00:00:03]} b4 {[%clk
00:04:11]} {[%emt 00:00:02]} 6. Nce2 {[%clk 00:06:09]} {[%emt 00:00:03]} e6
{[%clk 00:04:13]} {[%emt 00:00:01]} 7. Nh3 {[%clk 00:06:11]} {[%emt 00:00:01]}
d5 {[%clk 00:04:16]} {[%emt 00:00:01]} 8. exd5 {[%clk 00:05:55]} {[%emt
00:00:19]} Bxd5 {[%clk 00:04:16]} {[%emt 00:00:03]} 9. O-O {[%clk 00:05:49]}
{[%emt 00:00:08]} Bxg2 {[%clk 00:04:16]} {[%emt 00:00:03]} 10. Kxg2 {[%clk
00:05:51]} {[%emt 00:00:01]} Nf6 {[%clk 00:04:15]} {[%emt 00:00:03]} 11. Nef4
{[%clk 00:05:50]} {[%emt 00:00:04]} Be7 {[%clk 00:04:10]} {[%emt 00:00:09]} 12.
Be3 {[%clk 00:05:28]} {[%emt 00:00:25]} O-O {[%clk 00:04:06]} {[%emt 00:00:06]}
13. d4 {[%clk 00:04:58]} {[%emt 00:00:33]} cxd4 {[%clk 00:03:55]} {[%emt
00:00:14]} 14. Qxd4 {[%clk 00:04:55]} {[%emt 00:00:05]} Qxd4 {[%clk 00:03:56]}
{[%emt 00:00:03]} 15. Bxd4 {[%clk 00:04:57]} {[%emt 00:00:02]} Nc6 {[%clk
00:03:58]} {[%emt 00:00:01]} 16. Be3 {[%clk 00:04:58]} {[%emt 00:00:01]} Ng4
{[%clk 00:03:38]} {[%emt 00:00:23]} 17. Bd2 {[%clk 00:04:43]} {[%emt 00:00:18]}
Rfd8 {[%clk 00:03:37]} {[%emt 00:00:04]} 18. Rfd1 {[%clk 00:04:42]} {[%emt
00:00:05]} Rac8 {[%clk 00:03:38]} {[%emt 00:00:02]} 19. Nd3 {[%clk 00:04:07]}
{[%emt 00:00:38]} a5 {[%clk 00:03:35]} {[%emt 00:00:06]} 20. Rac1 {[%clk
00:04:05]} {[%emt 00:00:05]} Nge5 {[%clk 00:03:32]} {[%emt 00:00:06]} 21. Nxe5
{[%clk 00:03:46]} {[%emt 00:00:22]} Nxe5 {[%clk 00:03:34]} {[%emt 00:00:02]} 22.
b3 {[%clk 00:03:36]} {[%emt 00:00:14]} h6 {[%clk 00:03:22]} {[%emt 00:00:15]}
23. f4 {[%clk 00:03:10]} {[%emt 00:00:28]} Nc6 {[%clk 00:03:23]} {[%emt
00:00:01]} 24. c4 {[%clk 00:03:11]} {[%emt 00:00:02]} bxc3 {[%clk 00:02:52]}
{[%emt 00:00:35]} 25. Bxc3 {[%clk 00:03:05]} {[%emt 00:00:09]} Bb4 {[%clk
00:02:37]} {[%emt 00:00:18]} 26. Bb2 {[%clk 00:02:55]} {[%emt 00:00:13]} Ne7
{[%clk 00:02:33]} {[%emt 00:00:06]} 27. Rxd8+ {[%clk 00:02:03]} {[%emt
00:00:55]} Rxd8 {[%clk 00:02:34]} {[%emt 00:00:02]} 28. Rc2 {[%clk 00:02:05]}
Nf5 {[%clk 00:02:23]} {[%emt 00:00:15]} 29. Kf3 {[%clk 00:01:46]} {[%emt
00:00:21]} Ba3 {[%clk 00:01:37]} {[%emt 00:00:51]} 30. Nf2 {[%clk 00:01:25]}
{[%emt 00:00:24]} Bxb2 {[%clk 00:01:29]} {[%emt 00:00:11]} 31. Rxb2 {[%clk
00:01:26]} {[%emt 00:00:01]} Rc8 {[%clk 00:01:26]} {[%emt 00:00:06]} 32. b4
{[%clk 00:01:01]} {[%emt 00:00:28]} Rc3+ {[%clk 00:01:26]} {[%emt 00:00:03]} 33.
Kg2 {[%clk 00:01:02]} {[%emt 00:00:01]} axb4 {[%clk 00:01:24]} {[%emt
00:00:06]} 34. Rxb4 {[%clk 00:01:00]} {[%emt 00:00:05]} Rc2 {[%clk 00:01:19]}
{[%emt 00:00:08]} 35. Ra4 {[%clk 00:00:44]} {[%emt 00:00:19]} h5 {[%clk
00:00:58]} {[%emt 00:00:24]} 36. Ra3 {[%clk 00:00:36]} {[%emt 00:00:12]} Nd4
{[%clk 00:00:50]} {[%emt 00:00:11]} 37. h3 {[%clk 00:00:35]} {[%emt 00:00:04]}
Nb5 {[%clk 00:00:51]} {[%emt 00:00:01]} 38. Ra8+ {[%clk 00:00:34]} {[%emt
00:00:04]} Kh7 {[%clk 00:00:52]} {[%emt 00:00:02]} 39. a4 {[%clk 00:00:29]}
{[%emt 00:00:09]} Ra2 {[%clk 00:00:52]} {[%emt 00:00:05]} 40. Kf3 {[%clk
00:00:27]} {[%emt 00:00:08]} Ra3+ {[%clk 00:00:52]} {[%emt 00:00:03]} 41. Kg2
{[%clk 00:00:28]} {[%emt 00:00:02]} Ra2 {[%clk 00:00:48]} {[%emt 00:00:08]} 42.
Kf3 {[%clk 00:00:30]} {[%emt 00:00:01]} Ra3+ {[%clk 00:00:46]} {[%emt
00:00:05]} 43. Kg2 {[%clk 00:00:32]} Ra2 {[%clk 00:00:43]} {[%emt 00:00:07]} 44.
Rf8 {[%clk 00:00:27]} {[%emt 00:00:07]} Rxa4 {[%clk 00:00:34]} {[%emt
00:00:12]} 45. Rxf7 {[%clk 00:00:29]} {[%emt 00:00:02]} Kg6 {[%clk 00:00:32]}
{[%emt 00:00:05]} 46. Re7 {[%clk 00:00:24]} {[%emt 00:00:07]} Kf6 {[%clk
00:00:33]} {[%emt 00:00:03]} 47. Rb7 {[%clk 00:00:24]} {[%emt 00:00:02]} Nc3
{[%clk 00:00:34]} {[%emt 00:00:02]} 48. Rb3 {[%clk 00:00:23]} {[%emt 00:00:05]}
Nd5 {[%clk 00:00:34]} {[%emt 00:00:02]} 49. Kf3 {[%clk 00:00:22]} {[%emt
00:00:04]} Rb4 {[%clk 00:00:14]} {[%emt 00:00:24]} 50. Ra3 {[%clk 00:00:16]}
{[%emt 00:00:09]} Kg6 {[%clk 00:00:11]} {[%emt 00:00:05]} 51. Ne4 {[%clk
00:00:13]} {[%emt 00:00:06]} Rb6 {[%clk 00:00:12]} {[%emt 00:00:03]} 52. g4
{[%clk 00:00:12]} {[%emt 00:00:04]} hxg4+ {[%clk 00:00:14]} 53. hxg4 {[%clk
00:00:14]} {[%emt 00:00:01]} Nf6 {[%clk 00:00:16]} 54. Ng5 {[%clk 00:00:09]}
{[%emt 00:00:08]} Nd5 {[%clk 00:00:16]} {[%emt 00:00:03]} 55. Ne4 {[%clk
00:00:11]} 1/2-1/2

[Event "Chess Stars Match"]
[Site "Teatro Capri, Paterna, Spain"]
[Date "2019.12.15"]
[Round "2.5"]
[White "Vallejo Pons, Francisco"]
[Black "Povshednyi, Ivan"]
[Result "1-0"]
[TimeControl "7m+3s"]
[WhiteTitle "GM"]
[WhiteFideId "2205530"]
[BlackFideId "14190907"]
[WhiteElo "2704"]
[BlackElo "1795"]

1. d4 {[%clk 00:03:03]} {[%emt 00:00:02]} Nf6 {[%clk 00:06:03]} {[%emt
00:00:04]} 2. c4 {[%clk 00:03:03]} {[%emt 00:00:02]} g6 {[%clk 00:06:05]}
{[%emt 00:00:01]} 3. Bg5 {[%clk 00:03:04]} {[%emt 00:00:02]} Bg7 {[%clk
00:06:06]} {[%emt 00:00:02]} 4. Nc3 {[%clk 00:03:05]} {[%emt 00:00:02]} O-O
{[%clk 00:06:05]} {[%emt 00:00:04]} 5. e4 {[%clk 00:03:06]} {[%emt 00:00:02]}
d6 {[%clk 00:06:07]} {[%emt 00:00:01]} 6. Qd2 {[%clk 00:03:07]} {[%emt
00:00:02]} Nbd7 {[%clk 00:06:05]} {[%emt 00:00:05]} 7. f3 {[%clk 00:02:51]}
{[%emt 00:00:18]} c5 {[%clk 00:05:54]} {[%emt 00:00:15]} 8. d5 {[%clk
00:02:52]} {[%emt 00:00:02]} a6 {[%clk 00:05:52]} {[%emt 00:00:05]} 9. Nh3
{[%clk 00:02:32]} {[%emt 00:00:22]} Rb8 {[%clk 00:05:53]} {[%emt 00:00:03]} 10.
Nf2 {[%clk 00:02:05]} {[%emt 00:00:30]} b5 {[%clk 00:05:41]} {[%emt 00:00:14]}
11. cxb5 {[%clk 00:02:06]} {[%emt 00:00:02]} axb5 {[%clk 00:05:43]} {[%emt
00:00:01]} 12. Bxb5 {[%clk 00:02:07]} {[%emt 00:00:02]} Qa5 {[%clk 00:05:36]}
{[%emt 00:00:10]} 13. a4 {[%clk 00:02:04]} {[%emt 00:00:06]} Ba6 {[%clk
00:05:00]} {[%emt 00:00:39]} 14. O-O {[%clk 00:02:04]} {[%emt 00:00:03]} Ne5
{[%clk 00:04:57]} {[%emt 00:00:05]} 15. Qe2 {[%clk 00:01:52]} {[%emt 00:00:15]}
Bxb5 {[%clk 00:04:57]} {[%emt 00:00:03]} 16. axb5 {[%clk 00:01:44]} {[%emt
00:00:11]} Qc7 {[%clk 00:04:56]} {[%emt 00:00:04]} 17. Ra6 {[%clk 00:01:40]}
{[%emt 00:00:07]} h6 {[%clk 00:04:54]} {[%emt 00:00:06]} 18. Be3 {[%clk
00:01:32]} {[%emt 00:00:10]} Kh7 {[%clk 00:04:24]} {[%emt 00:00:32]} 19. Rfa1
{[%clk 00:01:34]} Ned7 {[%clk 00:04:17]} {[%emt 00:00:11]} 20. h3 {[%clk
00:01:15]} {[%emt 00:00:23]} Nh5 {[%clk 00:04:13]} {[%emt 00:00:07]} 21. Nfd1
{[%clk 00:01:06]} {[%emt 00:00:11]} Nb6 {[%clk 00:04:04]} {[%emt 00:00:12]} 22.
g4 {[%clk 00:01:02]} {[%emt 00:00:07]} Nf6 {[%clk 00:04:03]} {[%emt 00:00:04]}
23. Nf2 {[%clk 00:01:04]} {[%emt 00:00:01]} Ra8 {[%clk 00:04:03]} {[%emt
00:00:03]} 24. Kg2 {[%clk 00:01:05]} {[%emt 00:00:01]} Nfd7 {[%clk 00:04:02]}
{[%emt 00:00:04]} 25. f4 {[%clk 00:00:58]} {[%emt 00:00:10]} Bd4 {[%clk
00:03:48]} {[%emt 00:00:16]} 26. Qd3 {[%clk 00:00:56]} {[%emt 00:00:05]} Bxe3
{[%clk 00:03:48]} {[%emt 00:00:03]} 27. Qxe3 {[%clk 00:00:58]} Nc4 {[%clk
00:03:29]} {[%emt 00:00:23]} 28. Qe2 {[%clk 00:01:01]} Ncb6 {[%clk 00:03:32]}
29. h4 {[%clk 00:01:01]} {[%emt 00:00:03]} Rfb8 {[%clk 00:03:23]} {[%emt
00:00:11]} 30. g5 {[%clk 00:01:01]} {[%emt 00:00:04]} h5 {[%clk 00:03:24]}
{[%emt 00:00:02]} 31. Nfd1 {[%clk 00:00:59]} {[%emt 00:00:04]} Nf8 {[%clk
00:03:17]} {[%emt 00:00:10]} 32. Ne3 {[%clk 00:01:01]} {[%emt 00:00:01]} Qc8
{[%clk 00:03:07]} {[%emt 00:00:12]} 33. Kh2 {[%clk 00:00:58]} {[%emt 00:00:06]}
Qc7 {[%clk 00:03:08]} {[%emt 00:00:03]} 34. Qf1 {[%clk 00:00:56]} {[%emt
00:00:05]} Qc8 {[%clk 00:03:07]} {[%emt 00:00:03]} 35. f5 {[%clk 00:00:52]}
{[%emt 00:00:08]} Qe8 {[%clk 00:03:05]} {[%emt 00:00:05]} 36. Nc4 {[%clk
00:00:33]} {[%emt 00:00:22]} Nxc4 {[%clk 00:03:04]} {[%emt 00:00:04]} 37. Qxc4
{[%clk 00:00:34]} {[%emt 00:00:02]} Qc8 {[%clk 00:02:51]} {[%emt 00:00:16]} 38.
Qf1 {[%clk 00:00:35]} {[%emt 00:00:02]} Qe8 {[%clk 00:02:52]} {[%emt 00:00:03]}
39. fxg6+ {[%clk 00:00:34]} {[%emt 00:00:04]} fxg6 {[%clk 00:02:48]} {[%emt
00:00:07]} 40. Rxa8 {[%clk 00:00:31]} {[%emt 00:00:06]} Rxa8 {[%clk 00:02:50]}
41. Rxa8 {[%clk 00:00:32]} {[%emt 00:00:02]} Qxa8 {[%clk 00:02:53]} 42. Qf7+
{[%clk 00:00:33]} {[%emt 00:00:02]} Kh8 {[%clk 00:02:54]} 43. Qxe7 {[%clk
00:00:34]} {[%emt 00:00:04]} Qc8 {[%clk 00:02:54]} {[%emt 00:00:04]} 44. b6
{[%clk 00:00:29]} {[%emt 00:00:08]} Nh7 {[%clk 00:02:46]} {[%emt 00:00:12]} 45.
b7 {[%clk 00:00:27]} {[%emt 00:00:04]} Qb8 {[%clk 00:02:48]} 46. Qd7 {[%clk
00:00:26]} {[%emt 00:00:04]} Nf8 {[%clk 00:02:48]} {[%emt 00:00:02]} 47. Qc8
{[%clk 00:00:27]} {[%emt 00:00:02]} 1-0